[Event "Skol-SM i Schack 2024, Grupp A"]
[Site "Arena Varberg, Kattegattsvagen 26, Varberg, Sweden"]
[Date "2024.10.13"]
[Round "8.6"]
[White "Demeestere, Ewoud"]
[Black "Savela, Julina"]
[Result "0-1"]
[TimeControl "45 minutes + 10 seconds per move from move one."]
[WhiteFideId "1773585"]
[BlackFideId "1767437"]
[WhiteElo "1833"]
[BlackElo "1682"]

1. d4 {[%clk 00:45:19]} d5 {[%clk 00:45:13]} {[%emt 00:00:08]} 2. c4 {[%clk
00:45:27]} {[%emt 00:00:02]} e6 {[%clk 00:45:10]} {[%emt 00:00:12]} 3. Nc3
{[%clk 00:45:35]} {[%emt 00:00:01]} Nf6 {[%clk 00:45:19]} {[%emt 00:00:02]} 4.
Bg5 {[%clk 00:45:44]} {[%emt 00:00:01]} Be7 {[%clk 00:44:32]} {[%emt 00:00:58]}
5. Nf3 {[%clk 00:45:51]} {[%emt 00:00:02]} Nbd7 {[%clk 00:42:36]} {[%emt
00:02:07]} 6. e3 {[%clk 00:45:57]} {[%emt 00:00:04]} O-O {[%clk 00:42:34]}
{[%emt 00:00:12]} 7. Qc2 {[%clk 00:46:04]} {[%emt 00:00:02]} b6 {[%clk
00:42:17]} {[%emt 00:00:27]} 8. cxd5 {[%clk 00:45:55]} {[%emt 00:00:19]} exd5
{[%clk 00:42:18]} {[%emt 00:00:10]} 9. Bd3 {[%clk 00:45:39]} {[%emt 00:00:25]}
Bb7 {[%clk 00:41:48]} {[%emt 00:00:41]} 10. O-O {[%clk 00:45:45]} {[%emt
00:00:04]} Rc8 {[%clk 00:41:38]} {[%emt 00:00:19]} 11. Rfd1 {[%clk 00:44:14]}
{[%emt 00:01:40]} Re8 {[%clk 00:38:01]} {[%emt 00:03:48]} 12. Qa4 {[%clk
00:42:29]} {[%emt 00:01:54]} a6 {[%clk 00:37:00]} {[%emt 00:01:12]} 13. Bf5
{[%clk 00:41:41]} {[%emt 00:00:57]} b5 {[%clk 00:34:45]} {[%emt 00:02:27]} 14.
Qb3 {[%clk 00:39:25]} {[%emt 00:02:25]} Rb8 {[%clk 00:33:17]} {[%emt 00:01:39]}
15. Rac1 {[%clk 00:36:08]} {[%emt 00:03:25]} c5 {[%clk 00:31:13]} {[%emt
00:02:15]} 16. Bxf6 {[%clk 00:34:40]} {[%emt 00:01:39]} Nxf6 {[%clk 00:29:17]}
{[%emt 00:02:05]} 17. dxc5 {[%clk 00:32:27]} {[%emt 00:02:23]} Bxc5 {[%clk
00:28:02]} {[%emt 00:01:25]} 18. Nxb5 {[%clk 00:28:20]} {[%emt 00:04:16]} Bxe3
{[%clk 00:26:28]} {[%emt 00:01:45]} 19. fxe3 {[%clk 00:28:18]} {[%emt
00:00:12]} axb5 {[%clk 00:26:36]} {[%emt 00:00:02]} 20. Qxb5 {[%clk 00:26:11]}
{[%emt 00:02:18]} Ba8 {[%clk 00:26:39]} {[%emt 00:00:07]} 21. Qe2 {[%clk
00:25:13]} {[%emt 00:01:06]} Qb6 {[%clk 00:26:42]} {[%emt 00:00:08]} 22. Qf2
{[%clk 00:22:09]} {[%emt 00:03:15]} Qxb2 {[%clk 00:20:56]} {[%emt 00:05:55]} 23.
Nd4 {[%clk 00:21:03]} {[%emt 00:01:15]} Qa3 {[%clk 00:19:06]} {[%emt 00:01:55]}
24. Re1 {[%clk 00:19:41]} {[%emt 00:01:38]} Re7 {[%clk 00:16:51]} {[%emt
00:02:26]} 25. Rc6 {[%clk 00:13:38]} {[%emt 00:06:12]} Rbe8 {[%clk 00:10:59]}
{[%emt 00:06:01]} 26. Rxf6 {[%clk 00:12:54]} {[%emt 00:00:55]} gxf6 {[%clk
00:10:12]} {[%emt 00:00:57]} 27. Qg3+ {[%clk 00:13:00]} {[%emt 00:00:03]} Kf8
{[%clk 00:10:02]} {[%emt 00:00:21]} 28. Bxh7 {[%clk 00:12:54]} {[%emt
00:00:16]} Rxe3 {[%clk 00:08:42]} {[%emt 00:01:30]} 29. Qg8+ {[%clk 00:12:39]}
{[%emt 00:00:26]} Ke7 {[%clk 00:08:50]} {[%emt 00:00:01]} 30. Nf5+ {[%clk
00:12:03]} {[%emt 00:00:46]} Kd8 {[%clk 00:06:54]} {[%emt 00:02:06]} 31. Rxe3
{[%clk 00:11:13]} {[%emt 00:01:00]} Qc1+ {[%clk 00:06:45]} {[%emt 00:00:19]} 32.
Kf2 {[%clk 00:11:22]} {[%emt 00:00:01]} Qd2+ {[%clk 00:06:50]} {[%emt
00:00:06]} 33. Kg3 {[%clk 00:10:54]} {[%emt 00:00:38]} Rxg8+ {[%clk 00:06:40]}
{[%emt 00:00:20]} 34. Bxg8 {[%clk 00:11:01]} {[%emt 00:00:02]} d4 {[%clk
00:06:36]} {[%emt 00:00:14]} 35. Nxd4 {[%clk 00:09:29]} {[%emt 00:01:43]} Qxe3+
{[%clk 00:06:35]} {[%emt 00:00:10]} 36. Nf3 {[%clk 00:09:38]} {[%emt 00:00:01]}
Bxf3 {[%clk 00:06:34]} {[%emt 00:00:12]} 37. gxf3 {[%clk 00:09:47]} Qg5+ {[%clk
00:06:40]} {[%emt 00:00:03]} 0-1

[Event "Skol-SM i Schack 2024, Grupp A"]
[Site "Arena Varberg, Kattegattsvagen 26, Varberg, Sweden"]
[Date "2024.10.13"]
[Round "7.3"]
[White "Eriksson, Wilmer"]
[Black "Wedenberg, Oliver"]
[Result "1/2-1/2"]
[TimeControl "45 minutes + 10 seconds per move from move one."]
[WhiteFideId "1768298"]
[BlackFideId "1767909"]
[WhiteElo "1849"]
[BlackElo "1858"]

1. e4 {[%clk 00:45:19]} c5 {[%clk 00:45:02]} {[%emt 00:00:19]} 2. c3 {[%clk
00:45:23]} {[%emt 00:00:06]} d5 {[%clk 00:45:06]} {[%emt 00:00:06]} 3. exd5
{[%clk 00:45:29]} {[%emt 00:00:04]} Nf6 {[%clk 00:45:14]} {[%emt 00:00:01]} 4.
Bb5+ {[%clk 00:44:27]} {[%emt 00:01:12]} Nbd7 {[%clk 00:45:22]} {[%emt
00:00:02]} 5. c4 {[%clk 00:44:25]} {[%emt 00:00:12]} a6 {[%clk 00:44:51]}
{[%emt 00:00:42]} 6. Ba4 {[%clk 00:44:02]} {[%emt 00:00:32]} b5 {[%clk
00:42:52]} {[%emt 00:02:10]} 7. cxb5 {[%clk 00:43:58]} {[%emt 00:00:14]} axb5
{[%clk 00:43:01]} {[%emt 00:00:01]} 8. Bxb5 {[%clk 00:43:47]} {[%emt 00:00:21]}
Bb7 {[%clk 00:42:26]} {[%emt 00:00:45]} 9. Nf3 {[%clk 00:43:03]} {[%emt
00:00:53]} Nxd5 {[%clk 00:38:03]} {[%emt 00:04:33]} 10. O-O {[%clk 00:41:51]}
{[%emt 00:01:22]} e6 {[%clk 00:38:06]} {[%emt 00:00:08]} 11. Nc3 {[%clk
00:41:15]} {[%emt 00:00:45]} Bd6 {[%emt 00:00:17]} 12. d4 {[%clk 00:23:29]}
{[%emt 00:17:56]} cxd4 {[%clk 00:33:21]} {[%emt 00:04:48]} 13. Nxd4 {[%clk
00:22:07]} {[%emt 00:01:33]} O-O {[%clk 00:31:25]} {[%emt 00:02:06]} 14. h3
{[%clk 00:12:58]} {[%emt 00:09:18]} Ne5 {[%clk 00:29:11]} {[%emt 00:02:24]} 15.
Qe2 {[%clk 00:10:38]} {[%emt 00:02:29]} Rc8 {[%clk 00:25:28]} {[%emt 00:03:54]}
16. Ne4 {[%clk 00:08:49]} {[%emt 00:01:59]} Bb8 {[%clk 00:22:47]} {[%emt
00:02:51]} 17. Bg5 {[%clk 00:08:21]} {[%emt 00:00:37]} Qb6 {[%clk 00:20:44]}
{[%emt 00:02:15]} 18. Rfd1 {[%clk 00:08:29]} {[%emt 00:00:02]} h6 {[%clk
00:19:10]} {[%emt 00:01:44]} 19. Be3 {[%clk 00:07:56]} {[%emt 00:00:42]} Nxe3
{[%clk 00:17:30]} {[%emt 00:01:51]} 20. Qxe3 {[%clk 00:08:00]} {[%emt
00:00:05]} Rfd8 {[%clk 00:15:24]} {[%emt 00:02:16]} 21. Nc3 {[%clk 00:02:54]}
{[%emt 00:05:17]} Ng6 {[%clk 00:13:23]} {[%emt 00:02:11]} 22. Nf5 {[%clk
00:00:52]} {[%emt 00:02:11]} Qc7 {[%clk 00:12:16]} {[%emt 00:01:18]} 23. Ng3
{[%clk 00:01:01]} {[%emt 00:00:01]} Ne7 {[%clk 00:10:17]} {[%emt 00:02:08]} 24.
Rxd8+ {[%clk 00:00:49]} {[%emt 00:00:21]} Rxd8 {[%clk 00:10:21]} {[%emt
00:00:06]} 25. Rd1 {[%clk 00:00:39]} {[%emt 00:00:20]} Rxd1+ {[%clk 00:09:52]}
{[%emt 00:00:39]} 26. Nxd1 {[%clk 00:00:48]} Nf5 {[%clk 00:08:50]} {[%emt
00:01:12]} 27. Nxf5 {[%clk 00:00:42]} {[%emt 00:00:17]} Qh2+ {[%clk 00:08:50]}
{[%emt 00:00:11]} 28. Kf1 {[%clk 00:00:51]} Bxg2+ {[%clk 00:08:29]} {[%emt
00:00:30]} 29. Ke2 {[%clk 00:00:59]} {[%emt 00:00:02]} exf5 {[%clk 00:08:22]}
{[%emt 00:00:18]} 30. Qe8+ {[%clk 00:00:41]} {[%emt 00:00:28]} Kh7 {[%clk
00:08:31]} 31. Bd3 {[%clk 00:00:50]} {[%emt 00:00:01]} Bxh3 {[%clk 00:08:24]}
{[%emt 00:00:17]} 32. Qxf7 {[%clk 00:00:46]} {[%emt 00:00:13]} Bg4+ {[%clk
00:08:20]} {[%emt 00:00:15]} 33. Kd2 {[%clk 00:00:46]} {[%emt 00:00:10]} Qf4+
{[%clk 00:07:39]} {[%emt 00:00:50]} 34. Kc2 {[%clk 00:00:56]} Qf3 {[%clk
00:07:24]} {[%emt 00:00:27]} 35. Nc3 {[%clk 00:00:38]} {[%emt 00:00:27]} Be5
{[%clk 00:06:59]} {[%emt 00:00:35]} 36. Qa7 {[%clk 00:00:23]} {[%emt 00:00:25]}
Bf4 {[%clk 00:05:36]} {[%emt 00:01:32]} 37. Qc5 {[%clk 00:00:21]} {[%emt
00:00:12]} Bg5 {[%clk 00:05:28]} {[%emt 00:00:19]} 38. Nd5 {[%clk 00:00:14]}
{[%emt 00:00:18]} Qd1+ {[%clk 00:05:32]} {[%emt 00:00:05]} 39. Kc3 {[%clk
00:00:17]} {[%emt 00:00:07]} Qc1+ {[%clk 00:05:24]} {[%emt 00:00:17]} 40. Bc2
{[%clk 00:00:20]} {[%emt 00:00:08]} Bd1 {[%clk 00:04:25]} {[%emt 00:01:09]} 41.
Ne3 {[%clk 00:00:28]} {[%emt 00:00:03]} Bf6+ {[%clk 00:04:22]} {[%emt
00:00:13]} 42. Kd3 {[%clk 00:00:22]} {[%emt 00:00:15]} Bxc2+ {[%clk 00:03:18]}
{[%emt 00:01:14]} 43. Qxc2 {[%clk 00:00:22]} {[%emt 00:00:11]} Qh1 {[%clk
00:01:56]} {[%emt 00:01:31]} 44. Nxf5 {[%clk 00:00:17]} {[%emt 00:00:15]} Qf3+
{[%clk 00:01:10]} {[%emt 00:00:56]} 45. Ne3 {[%clk 00:00:24]} {[%emt 00:00:03]}
h5 {[%clk 00:00:53]} {[%emt 00:00:27]} 46. Kd2+ {[%clk 00:00:13]} {[%emt
00:00:21]} g6 {[%clk 00:00:54]} {[%emt 00:00:09]} 47. Qc7+ {[%clk 00:00:20]}
{[%emt 00:00:03]} Bg7 {[%clk 00:00:57]} {[%emt 00:00:07]} 48. b4 {[%clk
00:00:19]} {[%emt 00:00:11]} Qxf2+ {[%clk 00:01:05]} {[%emt 00:00:02]} 49. Kd3
{[%clk 00:00:23]} {[%emt 00:00:06]} Qxa2 {[%clk 00:00:50]} {[%emt 00:00:24]} 50.
Qc4 {[%clk 00:00:17]} {[%emt 00:00:17]} Qa3+ {[%clk 00:00:33]} {[%emt
00:00:27]} 51. Ke2 {[%clk 00:00:21]} {[%emt 00:00:05]} Qb2+ {[%clk 00:00:36]}
{[%emt 00:00:08]} 52. Kf3 {[%clk 00:00:27]} {[%emt 00:00:05]} Qf6+ {[%clk
00:00:44]} {[%emt 00:00:02]} 53. Kg2 {[%clk 00:00:13]} {[%emt 00:00:23]} Qg5+
{[%clk 00:00:51]} {[%emt 00:00:03]} 54. Kf2 {[%clk 00:00:20]} {[%emt 00:00:03]}
h4 {[%clk 00:00:49]} {[%emt 00:00:13]} 55. Qg4 {[%clk 00:00:24]} {[%emt
00:00:05]} Qf6+ {[%clk 00:00:17]} {[%emt 00:00:41]} 56. Kg2 {[%clk 00:00:33]}
{[%emt 00:00:03]} Bh6 {[%clk 00:00:19]} {[%emt 00:00:08]} 57. Nf1 {[%clk
00:00:38]} {[%emt 00:00:05]} Qb2+ {[%clk 00:00:25]} {[%emt 00:00:03]} 58. Kh3
{[%clk 00:00:39]} {[%emt 00:00:09]} Qf2 {[%clk 00:00:23]} {[%emt 00:00:13]} 59.
Nh2 {[%clk 00:00:36]} {[%emt 00:00:12]} Qe3+ {[%clk 00:00:17]} {[%emt
00:00:16]} 60. Nf3 {[%clk 00:00:37]} {[%emt 00:00:09]} g5 {[%emt 00:00:18]} 61.
Qf5+ {[%clk 00:00:42]} {[%emt 00:00:03]} Kg7 {[%clk 00:00:17]} {[%emt
00:00:04]} 62. Qd7+ {[%clk 00:00:46]} {[%emt 00:00:06]} Kf8 {[%clk 00:00:20]}
{[%emt 00:00:07]} 63. Qd6+ {[%clk 00:00:48]} {[%emt 00:00:08]} Kg8 {[%clk
00:00:17]} {[%emt 00:00:13]} 64. Qd5+ {[%clk 00:00:43]} {[%emt 00:00:13]} Kh7
{[%clk 00:00:22]} {[%emt 00:00:07]} 65. Qf5+ {[%clk 00:00:50]} {[%emt
00:00:04]} Kg7 {[%clk 00:00:25]} {[%emt 00:00:07]} 66. Qd7+ {[%clk 00:00:58]}
{[%emt 00:00:01]} Kf6 {[%clk 00:00:24]} {[%emt 00:00:11]} 67. Qd6+ {[%clk
00:00:52]} {[%emt 00:00:17]} Kf5 {[%clk 00:00:13]} {[%emt 00:00:21]} 68. Qd7+
{[%clk 00:01:00]} {[%emt 00:00:01]} Qe6 {[%clk 00:00:17]} {[%emt 00:00:06]} 69.
Qxe6+ {[%clk 00:01:07]} {[%emt 00:00:04]} Kxe6 {[%clk 00:00:26]} {[%emt
00:00:01]} 70. Nxg5+ {[%clk 00:01:08]} {[%emt 00:00:08]} Bxg5 {[%clk 00:00:34]}
{[%emt 00:00:02]} 71. b5 {[%clk 00:01:17]} {[%emt 00:00:02]} Kd6 {[%clk
00:00:42]} 72. b6 {[%clk 00:01:26]} {[%emt 00:00:01]} Kc6 {[%clk 00:00:52]} 73.
b7 Kxb7 {[%clk 00:01:00]} 74. Kh2 {[%clk 00:01:44]} 1/2-1/2

[Event "Skol-SM i Schack 2024, Grupp A"]
[Site "Arena Varberg, Kattegattsvagen 26, Varberg, Sweden"]
[Date "2024.10.13"]
[Round "8.7"]
[White "Emanuelsson, Aron"]
[Black "Al-Sherufi, Haider"]
[Result "1-0"]
[TimeControl "45 minutes + 10 seconds per move from move one."]
[WhiteFideId "1780069"]
[BlackFideId "1745212"]
[WhiteElo "1720"]
[BlackElo "1599"]

1. d4 {[%clk 00:45:18]} {[%emt 00:00:02]} e6 {[%clk 00:45:19]} {[%emt
00:00:01]} 2. Nf3 {[%clk 00:45:22]} {[%emt 00:00:06]} f5 {[%clk 00:45:27]}
{[%emt 00:00:02]} 3. Bg5 {[%clk 00:45:06]} {[%emt 00:00:25]} Nf6 {[%clk
00:45:34]} {[%emt 00:00:03]} 4. Nc3 {[%clk 00:45:14]} {[%emt 00:00:02]} Be7
{[%clk 00:45:43]} {[%emt 00:00:01]} 5. e3 {[%clk 00:45:04]} {[%emt 00:00:21]}
b6 {[%clk 00:45:48]} {[%emt 00:00:05]} 6. Bd3 {[%clk 00:44:31]} {[%emt
00:00:42]} Bb7 {[%clk 00:45:51]} {[%emt 00:00:06]} 7. Qe2 {[%clk 00:44:24]}
{[%emt 00:00:19]} c5 {[%clk 00:44:51]} {[%emt 00:01:10]} 8. O-O-O {[%clk
00:44:09]} {[%emt 00:00:25]} Nc6 {[%clk 00:44:58]} {[%emt 00:00:02]} 9. h4
{[%clk 00:43:29]} {[%emt 00:00:50]} d5 {[%clk 00:44:58]} {[%emt 00:00:10]} 10.
Bb5 {[%clk 00:43:01]} {[%emt 00:00:38]} Nd7 {[%clk 00:43:53]} {[%emt 00:01:15]}
11. Kb1 {[%clk 00:39:21]} {[%emt 00:03:51]} a6 {[%clk 00:42:55]} {[%emt
00:01:08]} 12. Bxc6 {[%clk 00:39:27]} {[%emt 00:00:03]} Bxc6 {[%clk 00:43:03]}
{[%emt 00:00:02]} 13. Bf4 {[%clk 00:38:33]} {[%emt 00:01:05]} b5 {[%clk
00:35:49]} {[%emt 00:07:24]} 14. Ne5 {[%clk 00:38:12]} {[%emt 00:00:30]} Nxe5
{[%clk 00:35:05]} {[%emt 00:00:54]} 15. Bxe5 {[%clk 00:38:20]} {[%emt
00:00:01]} b4 {[%clk 00:35:00]} {[%emt 00:00:16]} 16. Qh5+ {[%clk 00:36:59]}
{[%emt 00:01:31]} g6 {[%clk 00:35:02]} {[%emt 00:00:07]} 17. Qh6 {[%clk
00:37:08]} {[%emt 00:00:01]} bxc3 {[%clk 00:34:37]} {[%emt 00:00:36]} 18. Bxh8
{[%clk 00:37:12]} {[%emt 00:00:06]} Rb8 {[%clk 00:34:45]} {[%emt 00:00:02]} 19.
b3 {[%clk 00:36:15]} {[%emt 00:01:07]} Qa5 {[%clk 00:34:48]} {[%emt 00:00:07]}
20. dxc5 {[%clk 00:33:27]} {[%emt 00:02:58]} Bxc5 {[%clk 00:31:42]} {[%emt
00:03:15]} 21. Bd4 {[%clk 00:29:27]} {[%emt 00:04:11]} Bxd4 {[%clk 00:31:30]}
{[%emt 00:00:23]} 22. exd4 {[%clk 00:29:32]} {[%emt 00:00:06]} Qa3 {[%clk
00:31:34]} {[%emt 00:00:05]} 23. Qc1 {[%clk 00:29:39]} {[%emt 00:00:02]} Qb4
{[%clk 00:30:52]} {[%emt 00:00:53]} 24. h5 {[%clk 00:29:09]} {[%emt 00:00:40]}
Ke7 {[%clk 00:29:10]} {[%emt 00:01:52]} 25. hxg6 {[%clk 00:29:11]} {[%emt
00:00:07]} hxg6 {[%clk 00:29:16]} {[%emt 00:00:04]} 26. Rh7+ {[%clk 00:29:09]}
{[%emt 00:00:13]} Kf6 {[%clk 00:29:18]} {[%emt 00:00:09]} 27. g4 {[%clk
00:28:08]} {[%emt 00:01:10]} g5 {[%clk 00:28:17]} {[%emt 00:01:11]} 28. gxf5
{[%clk 00:27:55]} {[%emt 00:00:23]} exf5 {[%clk 00:28:25]} {[%emt 00:00:02]} 29.
Rh6+ {[%clk 00:28:00]} {[%emt 00:00:05]} Kf7 {[%clk 00:28:19]} {[%emt
00:00:15]} 30. Rxc6 {[%clk 00:28:01]} {[%emt 00:00:09]} Rb5 {[%clk 00:27:54]}
{[%emt 00:00:36]} 31. Qxg5 {[%clk 00:28:01]} {[%emt 00:00:09]} Ra5 {[%clk
00:27:54]} {[%emt 00:00:11]} 32. Qf6+ {[%clk 00:28:02]} {[%emt 00:00:09]} Ke8
{[%clk 00:28:02]} {[%emt 00:00:02]} 33. Re1+ {[%clk 00:27:48]} {[%emt
00:00:23]} Kd7 {[%clk 00:28:11]} {[%emt 00:00:02]} 34. Qe6+ {[%clk 00:27:10]}
{[%emt 00:00:47]} Kd8 {[%clk 00:28:15]} {[%emt 00:00:07]} 35. Qe8# {[%emt
00:00:02]} 1-0

[Event "Skol-SM i Schack 2024, Grupp A"]
[Site "Arena Varberg, Kattegattsvagen 26, Varberg, Sweden"]
[Date "2024.10.13"]
[Round "7.4"]
[White "Al-Sherufi, Haider"]
[Black "Johansson, William"]
[Result "0-1"]
[TimeControl "45 minutes + 10 seconds per move from move one."]
[WhiteFideId "1745212"]
[BlackFideId "1744070"]
[WhiteElo "1599"]
[BlackElo "1971"]

1. e4 {[%clk 00:41:08]} {[%emt 00:04:11]} c6 {[%clk 00:45:06]} {[%emt
00:00:15]} 2. d4 {[%clk 00:41:04]} {[%emt 00:00:13]} d5 {[%clk 00:45:15]} 3.
exd5 {[%clk 00:41:13]} {[%emt 00:00:02]} cxd5 {[%clk 00:45:24]} 4. c4 {[%clk
00:41:22]} {[%emt 00:00:01]} Nf6 {[%clk 00:45:33]} {[%emt 00:00:01]} 5. Nc3
{[%clk 00:41:30]} {[%emt 00:00:02]} Nc6 {[%clk 00:45:41]} {[%emt 00:00:02]} 6.
Nf3 {[%clk 00:41:39]} Bg4 {[%clk 00:45:38]} {[%emt 00:00:13]} 7. cxd5 {[%clk
00:41:47]} {[%emt 00:00:02]} Nxd5 {[%clk 00:45:46]} {[%emt 00:00:02]} 8. Qb3
{[%clk 00:41:56]} {[%emt 00:00:01]} Bxf3 {[%clk 00:43:54]} {[%emt 00:02:01]} 9.
gxf3 {[%clk 00:41:56]} {[%emt 00:00:10]} e6 {[%clk 00:29:50]} {[%emt 00:14:13]}
10. Qxb7 {[%clk 00:40:16]} {[%emt 00:01:50]} Nxd4 {[%clk 00:29:20]} {[%emt
00:00:42]} 11. Bb5+ {[%clk 00:38:33]} {[%emt 00:01:52]} Nxb5 {[%clk 00:29:28]}
{[%emt 00:00:02]} 12. Qc6+ {[%clk 00:38:42]} {[%emt 00:00:02]} Ke7 {[%clk
00:28:08]} {[%emt 00:01:30]} 13. Nxb5 {[%clk 00:35:36]} {[%emt 00:03:16]} Rb8
{[%clk 00:21:54]} {[%emt 00:06:24]} 14. Qc5+ {[%clk 00:34:10]} {[%emt
00:01:35]} Ke8 {[%clk 00:22:01]} {[%emt 00:00:03]} 15. Qc6+ {[%clk 00:33:40]}
{[%emt 00:00:40]} Qd7 {[%clk 00:21:43]} {[%emt 00:00:29]} 16. Nxa7 {[%clk
00:32:54]} {[%emt 00:00:56]} Nb4 {[%clk 00:14:33]} {[%emt 00:07:19]} 17. Qxd7+
{[%clk 00:32:45]} {[%emt 00:00:19]} Kxd7 {[%clk 00:14:42]} {[%emt 00:00:02]} 18.
O-O {[%clk 00:32:53]} {[%emt 00:00:02]} Bc5 {[%clk 00:10:25]} {[%emt 00:04:27]}
19. Be3 {[%clk 00:32:42]} {[%emt 00:00:21]} Bxe3 {[%clk 00:09:21]} {[%emt
00:01:13]} 20. fxe3 {[%clk 00:32:45]} {[%emt 00:00:07]} Rb7 {[%clk 00:08:26]}
{[%emt 00:01:05]} 21. Rfd1+ {[%clk 00:32:15]} {[%emt 00:00:41]} Ke7 {[%clk
00:08:20]} {[%emt 00:00:15]} 22. a3 {[%clk 00:31:22]} {[%emt 00:01:04]} Nc2
{[%clk 00:08:11]} {[%emt 00:00:18]} 23. Nc6+ {[%clk 00:31:23]} {[%emt
00:00:09]} Kf6 {[%clk 00:08:17]} {[%emt 00:00:04]} 24. Rac1 {[%clk 00:29:49]}
{[%emt 00:01:44]} Nxe3 {[%clk 00:08:25]} {[%emt 00:00:03]} 25. Rd3 {[%clk
00:29:53]} {[%emt 00:00:06]} Nd5 {[%clk 00:08:22]} {[%emt 00:00:12]} 26. Rd2
{[%clk 00:28:28]} {[%emt 00:01:36]} Rb3 {[%clk 00:06:03]} {[%emt 00:02:28]} 27.
Nd4 {[%clk 00:27:54]} {[%emt 00:00:44]} Re3 {[%clk 00:06:11]} {[%emt 00:00:02]}
28. Kf2 {[%clk 00:27:40]} {[%emt 00:00:24]} Re5 {[%clk 00:04:16]} {[%emt
00:02:05]} 29. b4 {[%clk 00:26:29]} {[%emt 00:01:21]} Ra8 {[%clk 00:04:17]}
{[%emt 00:00:09]} 30. Ra2 {[%clk 00:25:56]} {[%emt 00:00:44]} Nxb4 {[%clk
00:04:18]} {[%emt 00:00:10]} 31. Rd2 {[%clk 00:22:27]} {[%emt 00:03:37]} Rxa3
{[%clk 00:04:06]} {[%emt 00:00:23]} 32. Rcd1 {[%clk 00:21:23]} {[%emt
00:01:14]} Ree3 {[%clk 00:03:46]} {[%emt 00:00:29]} 33. Kg2 {[%clk 00:21:31]}
{[%emt 00:00:02]} Nd5 {[%clk 00:03:20]} {[%emt 00:00:37]} 34. Nc2 {[%clk
00:21:03]} {[%emt 00:00:39]} Rac3 {[%clk 00:03:17]} {[%emt 00:00:11]} 35. Rxd5
{[%clk 00:20:55]} {[%emt 00:00:19]} Rxc2+ {[%clk 00:03:19]} {[%emt 00:00:07]}
36. R5d2 {[%clk 00:21:04]} {[%emt 00:00:01]} Rxd2+ {[%clk 00:03:21]} {[%emt
00:00:08]} 37. Rxd2 {[%clk 00:21:14]} g5 {[%clk 00:03:12]} {[%emt 00:00:20]} 38.
Kg3 {[%clk 00:21:22]} {[%emt 00:00:01]} h5 {[%clk 00:03:08]} {[%emt 00:00:14]}
39. h3 {[%clk 00:21:05]} {[%emt 00:00:27]} Kf5 {[%clk 00:03:11]} {[%emt
00:00:07]} 40. Rd7 {[%clk 00:21:08]} {[%emt 00:00:07]} f6 {[%clk 00:03:18]}
{[%emt 00:00:03]} 41. Rd4 {[%clk 00:20:38]} {[%emt 00:00:40]} e5 {[%clk
00:03:19]} {[%emt 00:00:10]} 42. Rd5 {[%clk 00:20:13]} {[%emt 00:00:34]} g4
{[%clk 00:03:14]} {[%emt 00:00:15]} 43. hxg4+ {[%clk 00:20:06]} {[%emt
00:00:17]} hxg4 {[%clk 00:03:23]} {[%emt 00:00:01]} 44. Rd6 {[%clk 00:20:08]}
{[%emt 00:00:09]} Rxf3+ {[%clk 00:03:29]} {[%emt 00:00:04]} 45. Kg2 {[%clk
00:20:17]} e4 {[%clk 00:03:09]} {[%emt 00:00:29]} 46. Rc6 {[%clk 00:20:14]}
{[%emt 00:00:14]} g3 {[%clk 00:02:48]} {[%emt 00:00:31]} 47. Rb6 {[%clk
00:20:03]} {[%emt 00:00:21]} Kg4 {[%clk 00:02:51]} {[%emt 00:00:06]} 48. Rxf6
{[%clk 00:20:08]} {[%emt 00:00:05]} 0-1

[Event "Skol-SM i Schack 2024, Grupp A"]
[Site "Arena Varberg, Kattegattsvagen 26, Varberg, Sweden"]
[Date "2024.10.13"]
[Round "8.8"]
[White "Keskitalo, Rasmus"]
[Black "Persson Holm, Simon"]
[Result "0-1"]
[TimeControl "45 minutes + 10 seconds per move from move one."]
[WhiteFideId "1768271"]
[BlackFideId "1744380"]
[WhiteElo "1752"]
[BlackElo "1737"]

1. e4 {[%clk 00:45:19]} c6 {[%clk 00:45:16]} {[%emt 00:00:06]} 2. d4 {[%clk
00:45:24]} {[%emt 00:00:04]} d5 {[%clk 00:45:22]} {[%emt 00:00:04]} 3. Nc3
{[%clk 00:45:32]} {[%emt 00:00:02]} dxe4 {[%clk 00:45:25]} {[%emt 00:00:07]} 4.
Nxe4 {[%clk 00:45:33]} {[%emt 00:00:09]} Nf6 {[%clk 00:45:32]} {[%emt
00:00:03]} 5. Nxf6+ {[%clk 00:45:39]} {[%emt 00:00:04]} exf6 {[%clk 00:45:38]}
{[%emt 00:00:04]} 6. Nf3 {[%clk 00:45:30]} {[%emt 00:00:19]} Bd6 {[%clk
00:45:41]} {[%emt 00:00:07]} 7. Bd3 {[%clk 00:45:36]} {[%emt 00:00:04]} O-O
{[%clk 00:45:30]} {[%emt 00:00:21]} 8. O-O {[%clk 00:45:43]} {[%emt 00:00:02]}
Bg4 {[%clk 00:45:34]} {[%emt 00:00:07]} 9. h3 {[%clk 00:45:49]} {[%emt
00:00:03]} Bh5 {[%clk 00:45:17]} {[%emt 00:00:28]} 10. c3 {[%clk 00:45:57]}
{[%emt 00:00:02]} Re8 {[%clk 00:44:55]} {[%emt 00:00:32]} 11. Be3 {[%clk
00:45:39]} {[%emt 00:00:27]} Nd7 {[%clk 00:44:55]} {[%emt 00:00:11]} 12. Qc2
{[%clk 00:43:41]} {[%emt 00:02:08]} Bxf3 {[%clk 00:44:41]} {[%emt 00:00:24]} 13.
Bxh7+ {[%clk 00:43:46]} {[%emt 00:00:04]} Kh8 {[%clk 00:43:19]} {[%emt
00:01:33]} 14. gxf3 {[%clk 00:43:40]} {[%emt 00:00:16]} g6 {[%clk 00:42:13]}
{[%emt 00:01:16]} 15. Bxg6 {[%clk 00:43:47]} {[%emt 00:00:02]} fxg6 {[%clk
00:41:55]} {[%emt 00:00:28]} 16. f4 {[%clk 00:43:09]} {[%emt 00:00:48]} f5
{[%clk 00:41:12]} {[%emt 00:00:54]} 17. Kh2 {[%clk 00:42:50]} {[%emt 00:00:28]}
Qh4 {[%clk 00:40:28]} {[%emt 00:00:54]} 18. Qd2 {[%clk 00:42:24]} {[%emt
00:00:37]} g5 {[%clk 00:39:06]} {[%emt 00:01:32]} 19. d5 {[%clk 00:40:37]}
{[%emt 00:01:56]} c5 {[%clk 00:36:13]} {[%emt 00:03:04]} 0-1